Cogmind - Beta 11.1 @@@ ROGUE MODE // 2022.05.21 @ 22:49:50 Player: Smie Result: Destroyed by S-27 Virus with Autogun Performance ------------- Evolutions (3) 1500 Regions Visited (6) 1200 Robots Destroyed (42) 210 Value Destroyed (1465) 1465 Prototype IDs (25) 500 Alien Tech Used (0) 0 Bonus (158) 158 TOTAL SCORE: 5033 Bonus ------- Aligned with FarCom 300 Friendly Fire -142 Cogmind --------- Core Integrity 0/700 Matter 300/300 Energy 245/250 System Corruption 3% Temperature Cool (0) Movement Core (50) Location -7/Factory Parts ------- > --- POWER (1) -------- (None) > --- PROPULSION (3) --- (None) > --- UTILITY (5) ------ Medium Battery Advanced Targeting Computer > --- WEAPON (4) ------- (None) > --- INVENTORY (5) ---- Structural Scanner Heavy Armor Plating Improved Shield Generator Peak State ------------ > --- POWER ------------ Micro Nuclear Core > --- PROPULSION ------- Light Treads Advanced Treads Compact Wheel > --- UTILITY ---------- Cryofiber Web Heat Sink Improved Heat Sink Medium Storage Unit Advanced Targeting Computer > --- WEAPON ----------- Advanced Beam Rifle High-powered Field Laser High-powered Field Laser High-powered Field Laser > --- INVENTORY -------- Medium Battery Structural Scanner Heavy Armor Plating High-powered Field Laser Rocket Launcher [Rating: 40] Favorites ----------- Power Ion Engine Engine Ion Engine Power Core Micro Nuclear Core Propulsion Light Treads Treads Light Treads Wheel Compact Wheel Utility Medium Storage Unit Device Structural Scanner Storage Medium Storage Unit Processor Advanced Targeting Computer Protection Improved Light Armor Plating Weapon High-powered Field Laser Energy Gun High-powered Field Laser Energy Cannon Firepult Launcher Rocket Launcher Build | -11 -10 -10 -10 -9 -8 -7 ------- Run | Scr Mat Min Exi Min Mat Fac Slots Evolved 6 | . . . . . 4 2 Power . | . . . . . . . Propulsion 1 | . . . . . 1 . Utility 3 | . . . . . 2 1 Weapon 2 | . . . . . 1 1 Parts Attached 62 | 6 3 . 2 5 23 23 Power 7 | 1 . . . 1 2 3 Engine 3 | 1 . . . 1 . 1 Core 4 | . . . . . 2 2 Reactor . | . . . . . . . Propulsion 18 | 2 1 . . 1 9 5 Treads 14 | 2 1 . . . 7 4 Leg . | . . . . . . . Wheel 4 | . . . . 1 2 1 Hover . | . . . . . . . Flight . | . . . . . . . Utility 21 | 1 2 . . . 9 9 Device 15 | . 1 . . . 8 6 Storage 3 | 1 1 . . . . 1 Processor 1 | . . . . . 1 . Hackware . | . . . . . . . Protection 2 | . . . . . . 2 Artifact . | . . . . . . . Weapon 16 | 2 . . 2 3 3 6 Energy Gun 14 | 2 . . 1 3 3 5 Energy Cannon 1 | . . . 1 . . . Ballistic Gun . | . . . . . . . Ballistic Cannon . | . . . . . . . Launcher 1 | . . . . . . 1 Special Weapon . | . . . . . . . Impact Weapon . | . . . . . . . Slashing Weapon . | . . . . . . . Piercing Weapon . | . . . . . . . Special Melee Weapon . | . . . . . . . Unidentified Prototypes 2 | . . . . . 2 . Parts Lost 29 | . . . . 3 2 24 Power 5 | . . . . 1 . 4 Propulsion 10 | . . . . 1 2 7 Utility 5 | . . . . . . 5 Weapon 9 | . . . . 1 . 8 Highest Loss Streak 9 | . . . . 2 1 9 To Critical Strikes . | . . . . . . . Average Slot Usage (%) 91 | . 89 100 93 92 96 84 Engine 7 | . 14 14 14 12 1 . Core 2 | . . . . . 7 3 Treads 20 | . 27 28 28 16 20 8 Wheel 3 | . . . . 11 2 7 Device 13 | . 4 14 14 14 18 16 Storage 11 | . 14 14 14 14 9 11 Processor 4 | . . . . . 9 7 Energy Gun 25 | . 28 28 15 19 26 26 Naked Turns . | . . . . . . . Heaviest Build 38 | 14 20 20 38 38 30 38 Greatest Support 62 | 40 40 40 40 40 62 42 Greatest Overweight (x) 8 | . . . . 2 2 8 Average Overweight (x) . | . . . . 1 . 1 Largest Inventory Capacity 10 | 8 10 10 10 10 10 10 Average Capacity 9 | 6 9 10 10 10 10 9 Most Carried 10 | 6 10 10 10 10 10 9 Average Carried 8 | 3 8 9 9 7 8 7 Final Capacity 10 | 8 10 10 10 10 10 5 Final Carried 10 | 6 10 10 10 7 8 4 Class Distribution -------------------- 54% | Mutant 38% | Skirmisher 5% | Scavenger-Skirmisher Dominant Class ---------------- Mutant | -10/Materials Mutant | -10/Mines Mutant | -10/Exiles Mutant | -9/Mines Skirmisher | -8/Materials Skirmisher | -7/Factory Resources | -11 -10 -10 -10 -9 -8 -7 ----------- Run | Scr Mat Min Exi Min Mat Fac Matter Collected 819 | 205 65 20 . 60 224 245 Remotely . | . . . . . . . Salvage Created 1805 | . 124 . . 128 884 669 Parts 86 | . 15 . . 4 36 31 Haulers Intercepted 1 | . . . . . 1 . Recyclers Shooed . | . . . . . . . Parts Field Recycled . | . . . . . . . Retrieved Matter . | . . . . . . . Parts Self-Destructed . | . . . . . . . Prevented . | . . . . . . . Kills | -11 -10 -10 -10 -9 -8 -7 ------- Run | Scr Mat Min Exi Min Mat Fac Combat Hostiles Destroyed 34 | . 3 . . 7 14 10 Guns 23 | . 1 . . 1 13 8 Cannons 3 | . . . . 3 . . AOE 5 | . 2 . . 2 . 1 Classes Destroyed 14 | . 4 . . 2 5 3 Worker 1 | . . . . . . 1 Builder 2 | . . . . . 1 1 Tunneler 2 | . . . . . 1 1 Hauler 1 | . . . . . 1 . Recycler 2 | . . . . . 1 1 Operator 1 | . 1 . . . . . Watcher 2 | . 1 . . . . 1 Swarmer 3 | . 3 . . . . . Grunt 17 | . 1 . . 2 11 3 Duelist 1 | . . . . . . 1 Sentry 7 | . . . . . 3 4 Demolisher 1 | . . . . 1 . . Hunter 2 | . . . . . . 2 Assembled 4 | . . . . 4 . . Best Kill Streak 8 | . 3 . . 7 3 8 Combat Bots Only 7 | . 3 . . 7 3 4 Max Kills in Single Turn 3 | . 3 . . 2 2 2 Gunslinging . | . . . . . . . Exploded 2 | . 2 . . 2 . 1 Melee . | . . . . . . . Uniques/NPCs Destroyed . | . . . . . . . Combat | -11 -10 -10 -10 -9 -8 -7 -------- Run | Scr Mat Min Exi Min Mat Fac Damage Taken 4267 | . 131 . . 593 985 2558 Core 1088 | . 26 . . 161 197 704 Absorbed by Shields . | . . . . . . . Regen/Repaired (Parts) 180 | . 89 . . . 91 . Core Remaining (%) 63 | 100 . . . 25 64 . Volleys Fired 91 | . 10 . . 8 42 31 Largest 4 | . 2 . . 2 3 4 Hottest 271 | . 80 . . 250 201 271 Shots Fired 215 | . 20 . . 11 106 78 Gun 207 | . 20 . . 8 106 73 Cannon 3 | . . . . 3 . . Launcher 5 | . . . . . . 5 Special . | . . . . . . . Kinetic . | . . . . . . . Thermal 179 | . . . . 3 106 70 Explosive 5 | . . . . . . 5 Electromagnetic 31 | . 20 . . 8 . 3 Robot Hit Streak 29 | . 7 . . 7 29 17 Robot Miss Streak 4 | . 2 . . 4 2 3 Penetration Max . | . . . . . . . Secondary Targets 2 | . . . . . 1 1 Max Gunslinging Chain 1 | . . . . . 1 1 Shots Hit Robots 153 | . 13 . . 9 81 50 Core Hits 74 | . 7 . . 12 29 26 Critical Kills . | . . . . . . . Critical Parts Destroyed . | . . . . . . . Critical Strikes 12 | . . . . . 8 4 Burn 12 | . . . . . 8 4 Melee Attacks . | . . . . . . . Impact . | . . . . . . . Slashing . | . . . . . . . Piercing . | . . . . . . . Sneak Attacks . | . . . . . . . Combat Hostiles . | . . . . . . . Follow-up Attacks . | . . . . . . . Damage Inflicted 4000 | . 329 . . 449 1811 1411 Guns 3140 | . 205 . . 79 1804 1052 Cannons 107 | . . . . 107 . . Explosions 740 | . 124 . . 263 . 353 Melee . | . . . . . . . Ramming 13 | . . . . . 7 6 Kinetic . | . . . . . . . Thermal 3332 | . 124 . . 370 1804 1034 Explosive 353 | . . . . . . 353 Electromagnetic 302 | . 205 . . 79 . 18 Impact . | . . . . . . . Slashing . | . . . . . . . Piercing . | . . . . . . . Highest Corruption 3 | . . . . . . 3 Average Corruption 1 | . . . . . . 1 Corruption Purged . | . . . . . . . Corruption Blocked . | . . . . . . . Effects 6 | . . . . . . 6 Message Errors 1 | . . . . . . 1 Matter Fused 1 | . . . . . . 1 Energy Discharges 2 | . . . . . . 2 Parts Rejected 1 | . . . . . . 1 Alerts 1 | . . . . . . 1 Overload Shots . | . . . . . . . Overflow Damage 20 | . 12 . . . . 8 Projectiles . | . . . . . . . Explosions 20 | . 12 . . . . 8 Melee . | . . . . . . . Knockbacks . | . . . . . . . Impact . | . . . . . . . Kinetic . | . . . . . . . Secondary . | . . . . . . . Self-Inflicted Damage 245 | . 74 . . 78 . 93 Shots 13 | . 2 . . 8 . 3 Rammed 7 | . . . . . 2 5 Targets Rammed 8 | . . . . . 3 5 Kicked . | . . . . . . . Crushed 1 | . . . . . 1 . Highest Temperature 727 | . 66 . . 727 377 360 Average Temperature 173 | . 24 . . 329 170 148 Received Heat Transfer 1179 | . 6 . . . 531 642 Effects 22 | . . . . 15 2 5 Shutdowns 3 | . . . . 3 . . Energy Bleed 7 | . . . . 4 . 3 Interference 4 | . . . . . 2 2 Short Circuit 3 | . . . . 3 . . Damage (minor) 1 | . . . . 1 . . Damage (major) 4 | . . . . 4 . . Siege Activations . | . . . . . . . Robots Corrupted . | . . . . . . . Combat Hostiles . | . . . . . . . Parts Fried 1 | . 1 . . . . . Impact Corruptions . | . . . . . . . Robots Melted 3 | . . . . 1 1 1 Combat Hostiles 3 | . . . . 1 1 1 Parts Melted 14 | . . . . 2 7 5 Heat Transferred 7751 | . 200 . . 1890 3663 1998 Parts Sabotaged . | . . . . . . . Parts Stolen . | . . . . . . . Parts Stripped . | . . . . . . . Power Chain Reactions 3 | . 2 . . 1 . . Missiles Intercepted . | . . . . . . . Alert | -11 -10 -10 -10 -9 -8 -7 ------- Run | Scr Mat Min Exi Min Mat Fac Peak Influence 294 | . 111 9 . 98 294 191 Initial 94 | . . 9 . . 33 94 Average 73 | . 41 9 . 78 127 72 Maximum Alert Level 1 | . . . . . 1 . Low Security (%) 93 | 100 100 100 . 100 77 100 Level 1 6 | . . . . . 22 . Level 2 . | . . . . . . . Level 3 . | . . . . . . . Level 4 . | . . . . . . . Level 5 . | . . . . . . . High Security . | . . . . . . . Max Security . | . . . . . . . Squads Dispatched 8 | . 1 1 . . 2 4 Investigation 2 | . . 1 . . 1 . Extermination 1 | . . . . . . 1 Reinforcement 2 | . 1 . . . 1 . Assault . | . . . . . . . Garrison 3 | . . . . . . 3 Intercept . | . . . . . . . Searches Triggered . | . . . . . . . Construction Impeded . | . . . . . . . Haulers Reinforced . | . . . . . . . Active Scanning Responses . | . . . . . . . Cargo Convoy Interrupts . | . . . . . . . Stealth | -11 -10 -10 -10 -9 -8 -7 --------- Run | Scr Mat Min Exi Min Mat Fac Distress Signals 4 | . . . . . 2 2 Communications Jammed . | . . . . . . . Distress Signals . | . . . . . . . Times Spotted 71 | . 7 . . 17 26 21 Peak Tracking Total 10 | . 3 . . 10 6 9 Tactical Retreats 5 | . . . . . 4 1 Traps | -11 -10 -10 -10 -9 -8 -7 ------- Run | Scr Mat Min Exi Min Mat Fac Traps Triggered 5 | . . . . . 1 4 Indirectly . | . . . . . . . Trap Hack Attempts . | . . . . . . . Triggered . | . . . . . . . Disarmed . | . . . . . . . Reprogrammed . | . . . . . . . Reused . | . . . . . . . Traps Extracted . | . . . . . . . Installed . | . . . . . . . Triggered . | . . . . . . . Machines | -11 -10 -10 -10 -9 -8 -7 ---------- Run | Scr Mat Min Exi Min Mat Fac Machines Disabled 3 | . . . . . . 3 Max in Single Turn 1 | . . . . . . 1 Machines Sabotaged . | . . . . . . . Garrisons Compromised . | . . . . . . . Overloaded Fab Kills . | . . . . . . . Hacking | -11 -10 -10 -10 -9 -8 -7 --------- Run | Scr Mat Min Exi Min Mat Fac Machines Accessed 13 | . 4 1 4 . 2 2 Terminals 5 | . 3 . . . 1 1 Fabricators . | . . . . . . . Repair Stations 2 | . 1 . . . 1 . Recycling Units . | . . . . . . . Scanalyzers . | . . . . . . . Garrison Access 1 | . . . . . . 1 Total Hacks 43 | . 12 1 22 . 6 2 Successful 36 | . 9 1 22 . 4 . Failed 7 | . 3 . . . 2 2 Catastrophic 2 | . 1 . . . 1 . Database Lockouts . | . . . . . . . Manual 10 | . 7 . 1 . 1 1 Terminals 10 | . 8 . . . 1 1 Fabricators . | . . . . . . . Repair Stations 9 | . 4 . . . 5 . Recycling Units . | . . . . . . . Scanalyzers . | . . . . . . . Garrison Access 1 | . . . . . . 1 Terminal Hacks 25 | . 2 1 22 . . . Record 21 | . . . 21 . . . Open Door 1 | . . 1 . . . . Emergency Access Points 1 | . 1 . . . . . Zone Layout 1 | . 1 . . . . . EX-Prototype ID Bank 1 | . . . 1 . . . Fabricator Hacks . | . . . . . . . Repair Station Hacks 8 | . 4 . . . 4 . Scan Component 4 | . 2 . . . 2 . Repair 4 | . 2 . . . 2 . Recycling Unit Hacks . | . . . . . . . Scanalyzer . | . . . . . . . Garrison Access Hacks . | . . . . . . . Unauthorized Hacks 3 | . 3 . . . . . Terminals 3 | . 3 . . . . . Botnet 3 | . 3 . . . . . Fabricators . | . . . . . . . Repair Stations . | . . . . . . . Recycling Units . | . . . . . . . Scanalyzers . | . . . . . . . Garrison Access . | . . . . . . . Data Cores Recovered . | . . . . . . . Used . | . . . . . . . Hacking Detections 6 | . 3 . . . 1 2 Full Trace Events . | . . . . . . . Feedback Events . | . . . . . . . Feedback Blocked . | . . . . . . . Robot Schematics Acquired . | . . . . . . . Robots Built . | . . . . . . . Authchips . | . . . . . . . Time . | . . . . . . . Total Robot Build Rating . | . . . . . . . Part Schematics Acquired . | . . . . . . . Parts Built . | . . . . . . . Authchips . | . . . . . . . Time . | . . . . . . . Total Part Build Rating . | . . . . . . . Parts Repaired 4 | . 2 . . . 2 . Time 114 | . 52 . . . 62 . Parts Recycled . | . . . . . . . Recycled Matter . | . . . . . . . Retrieved Matter . | . . . . . . . Retrieved Components . | . . . . . . . Parts Scanalyzed . | . . . . . . . Part Schematics Acquired . | . . . . . . . Parts Damaged . | . . . . . . . Bothacking | -11 -10 -10 -10 -9 -8 -7 ------------ Run | Scr Mat Min Exi Min Mat Fac Used RIF Installer . | . . . . . . . Robots Hacked . | . . . . . . . Non-combat . | . . . . . . . Combat . | . . . . . . . Robot Hacks Applied . | . . . . . . . Relay Couplers Released . | . . . . . . . Fabnet Peak Effective % . | . . . . . . . Robots Rewired 1 | . 1 . . . . . Allies Hacked . | . . . . . . . Hacks Repelled . | . . . . . . . Allies | -11 -10 -10 -10 -9 -8 -7 -------- Run | Scr Mat Min Exi Min Mat Fac Total Allies 2 | . 1 1 . . . . Largest Group 1 | . 1 1 1 . . . Highest-Rated Group 31 | . 8 31 31 . . . Highest-Rated Ally 31 | . 8 31 31 . . . Total Orders . | . . . . . . . Ally Attacks . | . . . . . . . Total Damage . | . . . . . . . Kills . | . . . . . . . Allies Corrupted . | . . . . . . . Allies Melted . | . . . . . . . Intel | -11 -10 -10 -10 -9 -8 -7 ------- Run | Scr Mat Min Exi Min Mat Fac Robot Analysis Total . | . . . . . . . Derelict Logs Recovered 1 | . . . . 1 . . Drone Launches . | . . . . . . . Drone Recoveries . | . . . . . . . Exploration | -11 -10 -10 -10 -9 -8 -7 ------------- Run | Scr Mat Min Exi Min Mat Fac Turns Passed 3477 | 88 671 338 386 186 897 911 Spaces Moved 1824 | 48 351 196 237 138 357 497 Core 49 | 3 . . . . . 46 Treads 1192 | 45 351 196 237 22 230 111 Legs . | . . . . . . . Wheels 583 | . . . . 116 127 340 Hover . | . . . . . . . Flight . | . . . . . . . Fastest Speed 50 | 50 160 160 160 95 110 50 Average Speed 147 | 153 160 160 160 116 139 139 Slowest Speed 450 | 160 160 160 160 240 160 450 Overloaded Moves . | . . . . . . . Propulsion Burnouts . | . . . . . . . Robots Hopped . | . . . . . . . Cave-ins Triggered . | . . . . . . . Exploration Rate (%) 34 | 4 43 47 61 46 27 16 Regions Visited 6 Branch Regions 3 Pre-discovered Areas 1 | . . . 1 . . . Known Exits Taken 1 | . . . . . 1 . Unknown Exits Taken 5 | 1 1 1 1 1 . . Scrap Searched 2 | . . 1 . 1 . . Spaces Dug . | . . . . . . . Terrain Destroyed 68 | . 4 . . 23 5 36 Melee . | . . . . . . . Projectile 6 | . . . . 1 5 . AOE 62 | . 4 . . 22 . 36 Terrain Rammed . | . . . . . . . Walls Destroyed . | . . . . . . . Machines Disabled . | . . . . . . . Actions | -11 -10 -10 -10 -9 -8 -7 --------- Run | Scr Mat Min Exi Min Mat Fac Total 2419 | 60 440 224 245 152 663 635 Wait 379 | . 68 17 . 1 219 74 Move 1818 | 47 350 195 236 137 356 497 Hop . | . . . . . . . Pick Up 34 | 7 5 6 3 . 11 2 Fast Attach 26 | 5 3 . . 1 5 12 Attach 17 | 1 . . 1 3 6 6 Detach 3 | . 1 . . . 1 1 Swap 19 | . . . 1 1 12 5 Drop 22 | . 1 6 4 1 8 2 Fire 91 | . 10 . . 8 42 31 Melee . | . . . . . . . Ram 2 | . . . . . . 2 Kick . | . . . . . . . Crush 6 | . . . . . 3 3 Escape Stasis . | . . . . . . . Rewire 2 | . 2 . . . . . Trap . | . . . . . . . Miscellaneous . | . . . . . . . Route ------- -11/Scrapyard -10/Materials (discovered 2 exits: [*Mat] / *Min) -10/Mines (discovered 2 exits: [*Mat] / *Exi) -10/Exiles -9/Mines -8/Materials -7/Factory (discovered 1 exit: [*Low]) History --------- Turn | Location | Event 12 | -11/Scrapyard | Discovered new exit (range 15) 89 | -11/Scrapyard | Entered Materials 318 | -10/Materials | Build established: Mutant 352 | -10/Materials | Discovered new exit (range 15) 510 | -10/Materials | Discovered new exit (range 5) 637 | -10/Materials | Repaired Lgt. Assault Rifle 664 | -10/Materials | Repaired Lgt. Treads 760 | -10/Materials | Entered Mines 766 | -10/Mines | Met a Derelict shopkeep closing up shop 829 | -10/Mines | Discovered new exit (range 11) 849 | -10/Mines | Received a Mining Laser from a helpful Derelict 1040 | -10/Mines | Received a Rocket Launcher from a helpful Derelict 1092 | -10/Mines | Deemed a non-threat by the Exiles lab entrance 1092 | -10/Mines | Discovered new exit (range 5) 1098 | -10/Mines | Entered Exiles 1098 | -10/Exiles | Accompanied by 1 ally 1137 | -10/Exiles | Met 8R-AWN 1164 | -10/Exiles | Met EX-HEX 1209 | -10/Exiles | Met EX-BIN 1226 | -10/Exiles | Aligned with FarCom system 1228 | -10/Exiles | Given EX-Vault access code 1292 | -10/Exiles | Opened EX-Vault 1304 | -10/Exiles | Found Firepult 1344 | -10/Exiles | Warned to stay clear of 0b10 Research branches 1391 | -10/Exiles | Met EX-DEC 1397 | -10/Exiles | Learned location of Zion (-7) 1471 | -10/Exiles | Discovered new exit (range 10) 1484 | -10/Exiles | Left Exiles lab with Firepult 1484 | -10/Exiles | Entered Mines 1485 | -9/Mines | Assembled infested the area 1545 | -9/Mines | Core integrity fell below 50% 1569 | -9/Mines | Destroyed 7 combat bots 1596 | -9/Mines | Learned 2 Materials zone layouts 1658 | -9/Mines | Discovered new exit (range 12) 1670 | -9/Mines | Entered Materials 1670 | -8/Materials | Evolved 4 slots: Propulsion x1, Utility x2, Weapon x1 1671 | -8/Materials | Identified exit to Factory 1771 | -8/Materials | Repaired Broken Lgt. Treads 1799 | -8/Materials | Repaired Wheel 2001 | -8/Materials | Build established: Skirmisher 2567 | -8/Materials | Entered Factory 2567 | -7/Factory | Evolved 2 slots: Utility x1, Weapon x1 2654 | -7/Factory | Discovered new exit (range 2) 2878 | -7/Factory | Lost 4 parts (1p2n1w) 3200 | -7/Factory | Garrison activated, responded to threat 3281 | -7/Factory | Lost 4 parts (1u3w) 3385 | -7/Factory | Lost 5 parts (1p2n1u1w) 3429 | -7/Factory | Core integrity fell below 50% 3459 | -7/Factory | Core integrity fell below 20% 3478 | -7/Factory | Destroyed by S-27 Virus with Autogun Last Messages --------------- 03443_ K-01 Serf collects debris. 03443_ Imp. Light Armor Plating destroyed. 03445_ Overheating: Energy bleed (-44). 03447_ K-01 Serf collects debris. 03448_ Lgt. Treads destroyed. 03448_ Particle Gun destroyed. 03449_ Com. Wheel destroyed. 03451_ K-01 Serf collects debris. 03452_ Triggered Shock Trap. 03452_ The floor emits a surge of raw power. 03452_ System corrupted (+1). 03453_ Triggered Shock Trap. 03453_ The floor emits a surge of raw power. 03453_ System corrupted (+1). 03456_ Lgt. Treads destroyed. 03457_ Dropped Med. Storage Unit. 03457_ Dropped Imp. Heat Sink. 03457_ Hpw. Field Laser destroyed. 03465_ XUHCW3F %J>&F1BI41XBFFJ 03478_ Imp. Heat Sink destroyed. Map ----- +----------------------------------------------------+ | ??????# " " " " " " " " " " " " " " " ### #### | | ??????# % | | ??????# % ######### | | ??????# ######## # # ## | | ??????+ ###########/###### ##### | | ??????# #????? ##### | | ??????# #???????? ! ??? # ??? | | ???????##+########### #??????? ?? # ??? | | ????????????????????# #??????? ? # ??? | | ????????????????????# #??????[[= # ??? | | ????????????????????# ##???? [[? # ??? | | ????????????????????# T#???????? ????? | | ????????????????????#u^ #???????? ????? | | ??????????########### ##????????? ????? | | ??????????# #!! #???????????? #???? | | ??????????# """ """ # #?????????????######???? | | ??????????# """ """ # g #?????????????######???? | | ??????????# """ """ + #??????????????????????? | | ??????????# #g #??????????????????????? | | ??????????# ! !#s #??????????????????????? | | ??????????# g # #??????????????????????? | | ??????????# b # #??????????????????????? | | ????###???##/#####/## #??????????????????????? | | ????# !???# #???#ss #??????????????????????? | | ????# ?### ###?# s +??????????????????????? | | ????# # #?# @#?w????????????????????? | | ????# = # ### #??????????????????????? | | ????# + #??????????????????????? | | ????# # ########+###??????????????????????? | | ????# # #????? ???????????????????????? | | ????# ?#######??? ?????????????????????? | | ????# ?????????# ???????????????????? | | ????###??????????# #??????????????????? | | ?????????????????# #??????????????????? | | ?????????????????# #??????????????????? | | ?????????????????# #??????????????????? | | ?????????????????# #??????????????????? | | ?????????????????# #??????????????????? | | ?????????????????# #??????????????????? | | #+???????????????# #??????????????????? | | # ???????????????# #??????????????????? | | # ???????????????##############??????????????????? | | # ####???????????????????????????????????????????? | | # +???????????????????????????????????????????? | | # #???????????????????????????????????????????? | | # ###?????????????????????????????????????????? | | # #?????????????????????????????????????????? | | # #?????????????????????????????????????????? | | #### #?????????????????????????????????????????? | | ???# #?????????????????????????????????????????? | +----------------------------------------------------+ Best States ------------- Heat Dissipation 62 Energy Generation 16 Energy Capacity 440 Matter Stores 300 Matter Capacity 300 Sight Range 16 Terrain Scan Density 10 Base Temperature (-) 100 Armor Coverage 150 Evasion (%) 50 Targeting Accuracy 8 Recoil Reduction 3 Item Schematics ----------------- None Robot Schematics ------------------ None Fabricated ------------ Nothing Alien Tech Used ----------------- None Achievements -------------- None Challenges ------------ None Game ------ Seed BarrageFluxTendrils Manual? 0 Play Time 01:00:42 Cumulative 57.5 hours Start 2022.05.21 @ 21:42:43 End 2022.05.21 @ 22:49:50 Sessions 1 Manual Loads 0 Difficulty Rogue Special Mode None Game No. 41 Rogue 22 Adventurer 16 Explorer 3 Win Type - Total 2 Types 2/0/0/0/0/0/0/0/0 Lore% 34 Gallery% 43 Achievement% 35 Wizard Run 0 Options --------- ASCII 1 Keyboard 1 Movement Numpad Keybinds 0 Fullscreen 1 Font 18/TerminusBold Map View 76x50 Tactical HUD 1 Map Filters NONE Filters NONE Steam X RUN: 94088287-5372-4077-aec3-72da244234a7